[Event "12th WLC Weekend 2022"]
[Site "Eindhoven"]
[Date "2022.05.14"]
[Round "3.19"]
[White "Lind, Jacco"]
[Black "Smit, Maarten"]
[Result "0-1"]
[ECO "B11"]
[WhiteElo "1801"]
[BlackElo "2056"]
[Annotator "TA"]
[PlyCount "126"]
[EventDate "2022.05.13"]
[EventType "swiss"]
[EventCountry "NED"]
[SourceTitle "playchess.com"]
[Source "ChessBase"]
[SourceQuality "1"]
[TimeControl "5400+30"]

{[%evp 18,126,23,15,164,116,118,58,53,8,45,50,63,77,79,42,58,-12,0,-42,-18,-29,-34,-97,-108,-185,-177,-171,-162,-241,-210,-195,-46,-57,-17,-148,-151,-170,-177,-207,-141,-149,-138,-155,-148,-114,11,-45,-19,-16,0,-26,0,-49,-60,-55,-59,-37,-64,-216,-211,-201,-200,-196,-165,-158,-167,-159,-138,-158,-144,-158,-159,-164,-150,-233,-220,-233,-233,-233,-220,-233,-238,-705,-702,-694,-675,-729,-792,-682,-540,-520,-310,-665,-669,-571,-422,-583,-576,-628,-602,-449,-383,-659,-616,-997,-822,-985,-984,-859,-827]} 1. e4 {[%emt 0:00:03]} c6 {[%emt 0:00:06]} 2. Nc3 {[%emt 0:00:04]} d5 {[%emt 0:00:04]} 3. Nf3 {[%emt 0:00:04]} Bg4 {[%emt 0:00:08]} 4. h3 {[%emt 0:00:06]} Bh5 {[%emt 0:00:05]} 5. exd5 {[%emt 0:01:01]} cxd5 {[%emt 0:01:11]} 6. g4 {[%emt 0:00:08]} Bg6 {[%emt 0:00:04]} 7. Bb5+ {[%emt 0:00:06]} Nc6 {[%emt 0:00:06]} 8. Ne5 {[%emt 0:00:09]} Rc8 {[%emt 0:00:06]} 9. d4 {[%emt 0:00:23]} e6 {[%emt 0:01:41]} 10. Qe2 {[%emt 0:00:10] Threatens to win with h4.} Qe7 {[%emt 0:28:12] B11: Caro-Kann: Two Knights Variation.} (10... Bd6 $11) 11. h4 {[%emt 0:06:22]} ({White should play} 11. Bf4 $18) 11... f6 $16 {[%emt 0:00:29] [#]} 12. Nxg6 $146 {[%emt 0:00:15]} (12. h5 $1 $16 {[%cal Rh5g6]} Bf7 13. Bxc6+ (13. Nxf7 Kxf7 14. Be3 Qd7 $14) 13... bxc6 14. Nd3) ({Predecessor:} 12. h5 fxe5 13. hxg6 h6 14. dxe5 Qc7 15. f4 Bb4 16. Bd2 Nge7 17. O-O-O Nxg6 18. f5 Ngxe5 19. Bxc6+ bxc6 {1-0 (37) Azarov,S (2582)-Panarin,M (2486) Playchess.com INT 2005}) 12... hxg6 $14 {[%emt 0:00:07] White is slightly better.} 13. Qd3 {[%emt 0:00:42]} Qf7 {[%emt 0:12:40]} (13... Kf7 {is more complex.} 14. h5 gxh5 15. gxh5 Nh6) 14. Bd2 {[%emt 0:03:44]} Bd6 {[%emt 0:04:00][%cal Og6g5]} 15. O-O-O {[%emt 0:00:20]} Nge7 {[%emt 0:02:10]} 16. f4 {[%emt 0:02:25]} f5 {[%emt 0:01:59]} 17. gxf5 {[%emt 0:00:08]} (17. g5 $14) 17... Nxf5 {[%emt 0:04:12]} 18. Rde1 {[%emt 0:03:06][%cal Oe1e6]} Kf8 {[%emt 0:00:19]} 19. Bxc6 {[%emt 0:09:11]} Rxc6 {[%emt 0:07:36]} 20. Nd1 {[%emt 0:07:47]} (20. Kb1 $15) 20... Qf6 $1 $17 {[%emt 0:06:13]} 21. Bc3 {[%emt 0:00:24]} (21. Kb1 $17 {is a better defense.}) 21... Bxf4+ {[%emt 0:00:32]} 22. Kb1 {[%emt 0:00:10]} Rxh4 {[%emt 0:03:21]} 23. Rhf1 {[%emt 0:00:45]} (23. Qb5 $142) 23... a6 {[%emt 0:01:24]} 24. Ne3 {[%emt 0:01:50]} g5 {[%emt 0:02:27]} ({Weaker is} 24... Nxe3 25. Rxe3 g5 26. Rh3) (24... Bxe3 $19 25. Rxe3 g5) 25. Ng2 $1 $15 {[%emt 0:01:23]} Rg4 {[%emt 0:05:17]} 26. Qh3 {[%emt 0:00:50]} (26. Qe2 $1 $11 {was the only way to keep the balance.} Rg3 27. Nxf4 gxf4 28. Rxf4) 26... Nh6 $17 {[%emt 0:00:37]} 27. Rf3 {[%emt 0:06:53]} Kg8 {[%emt 0:02:54]} 28. Ref1 {[%emt 0:01:23]} Qg6 {[%emt 0:01:27]} 29. Nxf4 {[%emt 0:02:36]} gxf4 {[%emt 0:00:20]} ({Worse is} 29... Rxf4 30. Rxf4 gxf4 31. Rxf4 $17) 30. Rxf4 {[%emt 0:00:20]} Rxf4 {[%emt 0:01:32]} 31. Rxf4 {[%emt 0:00:05] [#]} Qg5 {[%emt 0:01:55]} (31... e5 $1 $17 {[%cal Re5f4]} 32. Rf2 (32. dxe5 $2 d4 $19) 32... exd4 33. Bxd4 Qe4) 32. Rf2 {[%emt 0:01:37]} (32. Rf1 $11) 32... Nf5 $40 {[%emt 0:01:49][%mdl 128] Black mounts an attack.} 33. a3 {[%emt 0:02:46]} Qe3 {[%emt 0:01:24]} 34. Rf3 {[%emt 0:01:10]} Qe2 {[%emt 0:01:03][%cal Of5d4]} (34... Qh6 $5 {[%cal Rh6h3]}) 35. Rd3 {[%emt 0:04:40]} (35. Rf1 $11 {might be stronger.}) 35... Rc8 $15 {[%emt 0:01:47]} 36. Rd2 {[%emt 0:00:38]} Qe3 {[%emt 0:02:14]} 37. Qg2 {[%emt 0:00:45]} Nh4 {[%emt 0:03:24]} 38. Qe2 {[%emt 0:07:09] [#] White is on the road to losing.} (38. Qh1 $1 $15 Nf5 39. Rd1) 38... Qxe2 $1 $19 {[%emt 0:00:38]} 39. Rxe2 {[%emt 0:00:04][%mdl 4096] Endgame KRB-KRN} Kf7 {[%emt 0:00:25]} 40. Bd2 {[%emt 0:00:05]} Nf5 {[%emt 0:00:18]} 41. c3 {[%emt 0:00:06]} Rh8 {[%emt 0:00:33] Inhibits Rh2.} 42. Bf4 {[%emt 0:01:01]} Rh4 {[%emt 0:01:05]} 43. Rf2 {[%emt 0:00:47]} Rg4 {[%emt 0:00:20]} 44. Kc2 {[%emt 0:01:12]} g5 {[%emt 0:00:14]} 45. Be5 {[%emt 0:00:24]} Kg6 {[%emt 0:00:43][%cal Og4g2]} 46. Kd2 {[%emt 0:00:12]} (46. Kb3 $17) 46... Rg1 {[%emt 0:00:39]} 47. Bh2 {[%emt 0:02:34]} Rb1 {[%emt 0:01:05]} 48. Kc2 {[%emt 0:02:28]} Re1 {[%emt 0:00:30]} 49. Kd2 {[%emt 0:00:10]} Re4 {[%emt 0:00:06]} 50. Re2 $2 {[%emt 0:02:42]} (50. Bc7) 50... Rxe2+ {[%emt 0:02:23]} 51. Kxe2 {[%emt 0:00:36] KB-KN} g4 {[%emt 0:00:08]} 52. Kf2 {[%emt 0:00:50]} b5 {[%emt 0:00:06]} 53. Bf4 {[%emt 0:01:41]} Kf6 {[%emt 0:00:27]} 54. Kg2 {[%emt 0:01:39]} Ne7 {[%emt 0:00:57]} 55. Kg3 $2 {[%emt 0:00:27]} (55. Kf2) 55... Kf5 {[%emt 0:00:02]} 56. Bd6 {[%emt 0:01:11]} Ng8 {[%emt 0:00:17] ...Nf6 is the strong threat.} 57. Be5 {[%emt 0:00:09]} Nh6 {[%emt 0:00:09]} 58. Bf4 {[%emt 0:00:58]} Nf7 {[%emt 0:00:22] aiming for ...Ng5.} 59. Bc7 {[%emt 0:01:31]} Ng5 {[%emt 0:00:11] Strongly threatening ...Ne4+.} 60. Kg2 $2 {[%emt 0:00:55]} (60. Kf2 Ne4+ 61. Kf1) 60... Ne4 {[%emt 0:00:41] Black is clearly winning.} 61. Bd8 {[%emt 0:00:24]} Nd2 {[%emt 0:00:09]} 62. Be7 {[%emt 0:00:11]} Nc4 {[%emt 0:00:49]} 63. b3 {[%emt 0:00:06]} Nd2 {[%emt 0:00:13] Weighted Error Value: White=0.59/Black=0.34} 0-1

[Event "12th WLC Weekend 2022"]
[Site "Eindhoven"]
[Date "2022.05.14"]
[Round "3.20"]
[White "Straat, Evert-Jan"]
[Black "Plasmans, Bart"]
[Result "1-0"]
[ECO "A99"]
[WhiteElo "2034"]
[BlackElo "1775"]
[Annotator "TA"]
[PlyCount "115"]
[EventDate "2022.05.13"]
[EventType "swiss"]
[EventCountry "NED"]
[SourceTitle "playchess.com"]
[Source "ChessBase"]
[SourceQuality "1"]
[TimeControl "5400+30"]

{[%evp 18,115,65,55,77,73,58,29,35,29,47,22,32,49,58,29,91,66,141,83,108,77,71,70,147,146,408,0,352,358,364,347,324,292,278,193,220,216,207,152,209,199,308,196,389,135,521,394,652,84,281,15,15,15,15,0,0,-40,-40,-173,-9,-52,0,0,8,8,8,8,8,8,8,8,8,8,534,8,5081,4714,29972,29973,29973,29970,29977,29979,29978,4001,1337,606,9647,588,29968,29942,29986,29984,29984,10209,10225,9163,29985,6873]} 1. d4 {[%emt 0:00:06]} e6 {[%emt 0:00:18]} 2. c4 {[%emt 0:00:14]} f5 {[%emt 0:00:28]} 3. Nf3 {[%emt 0:00:35]} Nf6 {[%emt 0:01:10]} 4. g3 {[%emt 0:01:02]} Be7 {[%emt 0:01:24]} 5. Bg2 {[%emt 0:00:20]} O-O {[%emt 0:02:06]} 6. O-O {[%emt 0:00:50]} d6 {[%emt 0:04:25]} 7. b3 {[%emt 0:03:42]} a5 {[%emt 0:02:29]} 8. Bb2 {[%emt 0:03:39]} Qe8 {[%emt 0:03:16] 8...a4 is more fashionable.} 9. Nc3 {[%emt 0:02:27]} Na6 {[%emt 0:05:03]} 10. Re1 {[%emt 0:07:49]} Ne4 {[%emt 0:06:38] A99: Classical Dutch: Fluid Systems: 7 Nc3 Qe8 8 b3.} 11. e3 {[%emt 0:15:32]} c6 {[%emt 0:09:35] [#]} 12. Nxe4 $146 {[%emt 0:10:54]} ({Predecessor:} 12. a3 Bd8 13. Qc2 d5 14. Ne2 Nb8 15. Ne5 Nd7 16. f3 Nef6 17. Nf4 Bc7 18. Nfd3 {½-½ (97) Schoen,W (2390)-Kampmann,H Dortmund 1991}) 12... fxe4 {[%emt 0:00:11] White has an edge.} 13. Nd2 {[%emt 0:00:07]} d5 {[%emt 0:00:08]} 14. f3 {[%emt 0:01:13]} exf3 {[%emt 0:03:29]} 15. Nxf3 {[%emt 0:03:01]} Bf6 {[%emt 0:06:51]} 16. e4 {[%emt 0:04:37]} Qh5 {[%emt 0:09:45]} (16... dxc4 $11 {remains equal.} 17. bxc4 e5) 17. Rc1 {[%emt 0:23:07]} Bd7 {[%emt 0:07:29]} (17... Rd8 $14) 18. exd5 {[%emt 0:13:43]} (18. Ne5 $142 $1 Qxd1 19. Rcxd1 (19. Rexd1 Rad8 $16) 19... Bxe5 20. dxe5) 18... exd5 $16 {[%emt 0:01:47]} 19. Ne5 {[%emt 0:00:08]} (19. cxd5 {feels hotter.} Bg4 20. dxc6 bxc6 21. Rxc6 Nb4 22. Rc5) 19... Qxd1 {[%emt 0:00:30]} 20. Rcxd1 {[%emt 0:00:02]} Bxe5 {[%emt 0:01:22]} (20... Rfd8 $1 $14) 21. dxe5 {[%emt 0:01:25]} Nb4 {[%emt 0:16:31][%mdl 8192]} (21... Bg4 $16) 22. a3 $2 {[%emt 0:01:52]} (22. e6 $18 Be8 23. e7 (23. cxd5 Nxd5 24. e7 Rf5 $18)) 22... Bg4 {[%emt 0:00:48][%mdl 8192]} (22... Nc2 $11) 23. axb4 $18 {[%emt 0:03:15]} Bxd1 {[%emt 0:00:08]} 24. Rxd1 {[%emt 0:00:01]} dxc4 {[%emt 0:00:18]} 25. bxc4 {[%emt 0:00:25]} axb4 {[%emt 0:00:17]} 26. e6 {[%emt 0:02:16]} Rad8 {[%emt 0:01:56]} 27. Re1 {[%emt 0:00:46]} Rfe8 {[%emt 0:00:28]} 28. Bc1 {[%emt 0:00:24] Prevents Rd2.} b3 {[%emt 0:01:07] [#]} (28... Rd4 $16 {was necessary.} 29. Bf1 h6) 29. Bh3 $1 {[%emt 0:00:50] Strongly threatening e7.} Rd4 {[%emt 0:07:29]} (29... Ra8 {was worth a try.} 30. Bf4 Ra4) 30. c5 {[%emt 0:00:20] Hoping for e7.} Rd5 $2 {[%emt 0:00:27]} (30... Rc4 31. Ba3 (31. e7 Rxe7 32. Rxe7 Rxc1+ 33. Kg2 b2 $15) 31... Kf8 32. Rf1+ (32. Re3 Rd4 $16) 32... Kg8) 31. Ba3 $2 {[%emt 0:00:21]} (31. e7 $18 {and the rest is easy. And now Be6+ would win.} Rxe7 32. Rxe7 Rd1+ 33. Kf2 Rxc1 34. Be6+ Kf8 35. Rf7+ Ke8 36. Bxb3) 31... g6 $2 {[%emt 0:00:16][%mdl 8192]} (31... Kf8 $16 {is a better chance.} 32. Rf1+ Ke7) 32. e7 {[%emt 0:00:40]} Rd2 $2 {[%emt 0:01:28]} (32... Rf5 33. Bxf5 gxf5) 33. Bc8 $2 {[%emt 0:00:20]} Ra2 $2 {[%emt 0:01:05]} (33... Rxc8 $2 34. e8=Q+ Rxe8 35. Rxe8+ Kf7 36. Re3 $16 (36. Rb8 Rd7 $16)) (33... b2 $16 {was called for.}) 34. Bxb7 $2 {[%emt 0:00:48]} Rxa3 $11 {[%emt 0:00:21]} 35. Bxc6 {[%emt 0:00:05]} Kf7 {[%emt 0:02:13][%cal Ob3b2]} 36. Bxe8+ {[%emt 0:00:39]} Kxe8 {[%emt 0:00:04][%mdl 4096] Endgame KR-KR} 37. Kf2 {[%emt 0:00:13]} Ra2+ {[%emt 0:00:21]} 38. Kf3 {[%emt 0:00:01]} (38. Ke3 $15) 38... Rc2 $2 {[%emt 0:00:09]} (38... Rxh2 $19 {Threatens to win with ...b2.} 39. Ke4 Kxe7 40. Kd5+ Kd7 41. c6+ Kd8) 39. Rb1 {[%emt 0:00:35]} Rc3+ {[%emt 0:00:38]} ({Better is} 39... b2 $15 40. h3 Kxe7) 40. Ke4 {[%emt 0:00:02] Kd4 is the strong threat.} Kxe7 {[%emt 0:00:02]} 41. Kd4 {[%emt 0:00:15]} Rf3 {[%emt 0:00:49]} 42. Kc4 {[%emt 0:00:13]} Rf2 $1 {[%emt 0:00:55]} 43. Rxb3 {[%emt 0:00:13] Black must now prevent Rb7+.} Rxh2 {[%emt 0:00:13]} 44. Kd5 {[%emt 0:00:19]} Rd2+ {[%emt 0:00:45]} 45. Kc6 {[%emt 0:00:10]} h5 $2 {[%emt 0:02:03][%mdl 8192]} (45... Rc2 $11 {and Black is okay.}) 46. Kc7 $2 {[%emt 0:00:38]} (46. Kb7 $18) 46... g5 $2 {[%emt 0:01:06][%mdl 8192]} (46... Kf6 $11) 47. c6 $18 {[%emt 0:00:10]} h4 {[%emt 0:00:10] [#]} 48. gxh4 $1 {[%emt 0:00:48]} ({Inferior is} 48. Re3+ Kf6 $11) 48... gxh4 {[%emt 0:00:02]} 49. Kb7 {[%emt 0:00:32]} Rd4 {[%emt 0:03:06]} 50. c7 {[%emt 0:00:36]} Rd7 {[%emt 0:01:18]} 51. Rd3 {[%emt 0:00:31]} Rxd3 {[%emt 0:00:12]} 52. c8=Q {[%emt 0:00:03] KQ-KR} h3 {[%emt 0:00:50]} 53. Qh8 {[%emt 0:00:26] White threatens Qh7+ and mate.} Rb3+ {[%emt 0:00:18]} 54. Kc6 {[%emt 0:00:05]} Ra3 {[%emt 0:00:28]} 55. Qh4+ {[%emt 0:01:27]} Kf7 {[%emt 0:00:19]} 56. Kc5 {[%emt 0:00:37]} (56. Qc4+ $142 Kg6 57. Qc2+ Kf7 58. Qf5+ Kg7 59. Qd7+ Kh6 60. Qd6+ Kh5 61. Qxa3) 56... Kg6 {[%emt 0:00:34]} 57. Kb4 {[%emt 0:00:15]} Ra7 {[%emt 0:00:51]} 58. Qg3+ {[%emt 0:00:30] Weighted Error Value: White=0.94/Black=1.25} (58. Qe4+ $142 Kh5 59. Qf3+ Kg6 60. Qd3+ Kh5 61. Qxh3+ Kg6 62. Qg2+ Kh6 63. Qh1+ Kg7 64. Qg1+ Kh7 65. Qxa7+ Kg6 66. Kc5) 1-0

[Event "12th WLC Weekend 2022"]
[Site "Eindhoven"]
[Date "2022.05.14"]
[Round "3.21"]
[White "Van der Velden, Alain"]
[Black "Van de Put, Jeroen"]
[Result "1/2-1/2"]
[ECO "A45"]
[WhiteElo "1659"]
[BlackElo "1987"]
[Annotator "TA"]
[PlyCount "21"]
[EventDate "2022.05.13"]
[EventType "swiss"]
[EventCountry "NED"]
[SourceTitle "playchess.com"]
[Source "ChessBase"]
[SourceQuality "1"]
[TimeControl "5400+30"]

{[%evp 9,21,66,66,63,74,75,75,76,89,57,88,79,97,93]} 1. d4 {[%emt 0:00:01]} Nf6 {[%emt 0:00:05]} 2. Bg5 {[%emt 0:00:04]} c5 {[%emt 0:01:00]} 3. d5 {[%emt 0:00:06]} d6 {[%emt 0:00:13]} 4. Nc3 {[%emt 0:01:49]} Nbd7 {[%emt 0:00:57]} 5. e4 {[%emt 0:00:39]} a6 {[%emt 0:01:45]} 6. a4 $1 {[%emt 0:00:33] [#] Prevents b5. A45: Trompowsky Attack.} Rb8 $146 {[%emt 0:04:19]} ({Predecessor:} 6... g6 7. Nf3 Bg7 8. Nd2 O-O 9. Be2 Rb8 10. O-O Ne8 11. a5 h6 12. Be3 Nc7 {1-0 (44) Erigaisi,A (2616)-Martirosyan,H (2656) Riga 2021}) 7. Nf3 {[%emt 0:03:32]} g6 {[%emt 0:00:35]} 8. Nd2 {[%emt 0:02:35] White is more active.} Bg7 {[%emt 0:01:54]} 9. a5 {[%emt 0:02:31]} b5 {[%emt 0:00:36]} 10. axb6 $1 {[%emt 0:00:13]} Nxb6 {[%emt 0:01:49]} 11. Bxa6 {[%emt 0:01:26] Black did not feel at home in the position after the opening.  Weighted Error Value: White=0.05 (flawless) /Black=0.11 (very precise)} 1/2-1/2

[Event "12th WLC Weekend 2022"]
[Site "Eindhoven"]
[Date "2022.05.14"]
[Round "3.22"]
[White "Broekhuis, Jan"]
[Black "Duson, Robin"]
[Result "0-1"]
[ECO "B22"]
[WhiteElo "1845"]
[BlackElo "1980"]
[Annotator "TA"]
[PlyCount "58"]
[EventDate "2022.05.13"]
[EventType "swiss"]
[EventCountry "NED"]
[SourceTitle "playchess.com"]
[Source "ChessBase"]
[SourceQuality "1"]
[TimeControl "5400+30"]

{[%evp 14,58,13,7,47,25,31,14,20,10,17,-7,0,-36,-16,-39,-28,-71,-85,-79,-89,-114,-135,-138,-95,-91,-88,-87,-77,-427,-427,-593,-594,-567,-540,-521,-405,-407,-271,-264,-259,-604,-597,-593,-584,-571,-554]} 1. e4 {[%emt 0:00:05]} c5 {[%emt 0:00:08]} 2. Nf3 {[%emt 0:00:20]} e6 {[%emt 0:00:23]} 3. c3 {[%emt 0:00:47]} d5 {[%emt 0:00:15]} 4. exd5 {[%emt 0:00:51]} Qxd5 {[%emt 0:00:08]} 5. d4 {[%emt 0:00:27]} Nf6 {[%emt 0:01:57]} 6. Be2 {[%emt 0:05:59]} Nc6 {[%emt 0:00:11]} 7. O-O {[%emt 0:01:16]} Be7 {[%emt 0:00:22]} 8. dxc5 {[%emt 0:03:09]} Bxc5 {[%emt 0:01:49] B22: Sicilian: 2 c3.} 9. Nbd2 {[%emt 0:06:42]} O-O {[%emt 0:03:43]} 10. Nb3 {[%emt 0:01:26] [#] Black must now prevent Qxd5.} Bb6 {[%emt 0:01:45][%cal Bc5b6,Bb6c7,Bc7e5,Be5g3][%mdl 32] The position is equal.} 11. Qxd5 {[%emt 0:06:32]} Nxd5 {[%emt 0:01:18] [#]} 12. a3 $146 {[%emt 0:01:01]} ({Predecessor:} 12. Bc4 Nce7 13. Bxd5 exd5 14. Bf4 Nf5 15. Rad1 Be6 16. Nbd4 Nxd4 17. Nxd4 Rac8 18. Nxe6 fxe6 19. Bg3 a5 20. Be5 Rf5 21. Bg3 Rcf8 22. Rde1 R5f6 23. Re2 {½-½ (23) Keilholz,S-Fritsch Gruendel,T freechess.de 2015}) 12... e5 {[%emt 0:05:06][%cal Be6e5,Be5e4][%mdl 32]} 13. c4 {[%emt 0:10:14]} Nf6 {[%emt 0:01:22]} 14. c5 {[%emt 0:02:58]} Bc7 {[%emt 0:05:00]} 15. h3 {[%emt 0:01:14]} Be6 {[%emt 0:01:36]} 16. Nbd2 {[%emt 0:01:12]} e4 {[%emt 0:03:59]} 17. Ne1 {[%emt 0:03:07]} Nd4 {[%emt 0:05:59]} 18. Bd1 {[%emt 0:02:01]} Rfd8 {[%emt 0:06:18]} 19. Nc2 {[%emt 0:04:18]} Be5 $36 {[%emt 0:03:08][%mdl 2048] Black is on the roll. Black is much more active. The white rooks are badly placed.} 20. Re1 {[%emt 0:02:29]} Rac8 {[%emt 0:05:47][%cal Ba8c8,Bc8c5,Bc5c2,Bc2e2][%mdl 32]} 21. f3 $2 {[%emt 0:18:50][%mdl 8192] This move loses the game for White.} (21. Nxd4 $17 {is a better chance.} Rxd4 22. f4) 21... Rxc5 $19 {[%emt 0:05:07]} 22. Ne3 {[%emt 0:02:18]} Bg3 {[%emt 0:03:46]} 23. Rf1 {[%emt 0:02:25]} Bf4 {[%emt 0:01:30]} 24. Re1 {[%emt 0:00:32]} Bxe3+ {[%emt 0:01:21]} 25. Rxe3 {[%emt 0:00:15]} Nc2 {[%emt 0:00:10]} 26. Bxc2 {[%emt 0:01:36]} Rxc2 {[%emt 0:00:08]} 27. Nf1 $2 {[%emt 0:03:15]} (27. fxe4 Rdxd2 28. Bxd2 Rxd2 29. b3) 27... exf3 {[%emt 0:01:23] [#] Hoping for ...f2+. Black is clearly winning.} 28. Rxf3 {[%emt 0:01:16]} Rd1 {[%emt 0:02:01]} 29. Rc3 {[%emt 0:01:25]} Re2 {[%emt 0:00:27] Weighted Error Value: White=0.69/Black=0.24 (precise)} 0-1

[Event "12th WLC Weekend 2022"]
[Site "Eindhoven"]
[Date "2022.05.14"]
[Round "3.23"]
[White "Simons, Rudy"]
[Black "Geboers, Jimmy"]
[Result "1-0"]
[ECO "C06"]
[WhiteElo "2046"]
[BlackElo "1845"]
[Annotator "TA"]
[PlyCount "77"]
[EventDate "2022.05.13"]
[EventType "swiss"]
[EventCountry "NED"]
[SourceTitle "playchess.com"]
[Source "ChessBase"]
[SourceQuality "1"]
[TimeControl "5400+30"]

{[%evp 22,77,59,37,62,41,51,29,35,19,40,36,56,29,50,35,60,46,52,52,53,54,47,51,42,49,60,51,133,125,102,75,70,71,71,54,109,106,102,105,132,130,128,123,110,114,113,100,413,410,389,340,519,501,536,530,494,481]} 1. e4 {[%emt 0:00:01]} e6 {[%emt 0:00:06]} 2. d4 {[%emt 0:00:06]} d5 {[%emt 0:00:04]} 3. Nd2 {[%emt 0:00:06]} Nf6 {[%emt 0:00:08]} 4. e5 {[%emt 0:00:14]} Nfd7 {[%emt 0:00:06]} 5. Bd3 {[%emt 0:00:06]} c5 {[%emt 0:00:08]} 6. c3 {[%emt 0:00:04]} Nc6 {[%emt 0:00:09]} 7. Ne2 {[%emt 0:00:05]} Qb6 {[%emt 0:00:15]} 8. Nf3 {[%emt 0:00:09]} f6 {[%emt 0:00:13]} 9. exf6 {[%emt 0:00:08]} Nxf6 {[%emt 0:00:08]} 10. O-O {[%emt 0:00:10]} cxd4 {[%emt 0:00:21]} 11. cxd4 {[%emt 0:00:08]} Bd6 {[%emt 0:00:10]} 12. Nc3 {[%emt 0:02:50]} a6 {[%emt 0:04:26] C06: French Tarrasch: 3...Nf6 4 e5 Nfd7 5 Bd3 main lines.} (12... Nxd4 $2 13. Nxd4 a6 14. Be3 $18) 13. a3 {[%emt 0:00:32]} Qc7 {[%emt 0:01:14]} (13... Nxd4 $2 14. Nxd4 (14. Qa4+ Nc6 $15) 14... O-O 15. Be3 $18) 14. Bg5 {[%emt 0:08:52][%cal Bc1g5,Bg5h4,Bh4g3][%mdl 32]} O-O {[%emt 0:00:57] White has an edge.} 15. Bh4 {[%emt 0:01:32]} (15. h3 {with more complications.} Nh5 16. Rc1 Nf4 17. Na4) 15... Bd7 {[%emt 0:04:32]} 16. Bg3 {[%emt 0:01:46] [#]} Rae8 $146 {[%emt 0:09:11]} ({Predecessor:} 16... Bxg3 17. hxg3 Rae8 18. Rc1 Qd6 19. Ne2 e5 20. dxe5 Nxe5 21. Nxe5 Rxe5 22. Qb3 Ng4 23. f3 Ne3 24. f4 Nxf1 25. fxe5 Qxe5 26. Rxf1 Qe3+ 27. Kh2 Qh6+ {½-½ (27) Sarauskas,A (1741)-Boyajyan,D (1655) Plateliai 2018}) 17. Bc2 {[%emt 0:04:48]} b5 {[%emt 0:03:31]} 18. Rc1 {[%emt 0:03:45]} Bf4 {[%emt 0:02:37]} 19. Ne2 {[%emt 0:09:18]} Bxg3 {[%emt 0:01:33]} 20. hxg3 {[%emt 0:03:28]} Qd6 {[%emt 0:01:31]} 21. Nf4 {[%emt 0:12:04]} e5 {[%emt 0:08:22]} 22. dxe5 {[%emt 0:00:12]} Nxe5 {[%emt 0:00:08]} 23. Nxe5 {[%emt 0:13:16]} Rxe5 {[%emt 0:00:26]} 24. Qd4 {[%emt 0:04:31]} Bf5 {[%emt 0:11:43]} (24... Rfe8 $14) 25. Bxf5 $16 {[%emt 0:02:56]} Rxf5 {[%emt 0:00:07]} 26. Rfd1 {[%emt 0:03:23] White is more active.} (26. Rfe1 {seems wilder.} Re8 27. Rxe8+ Nxe8 28. Rc8) 26... Re8 {[%emt 0:05:21]} 27. Qc5 {[%emt 0:02:47]} (27. Nd3 {feels hotter.} Ne4 28. Re1 Rh5 29. Nf4) 27... Qxc5 {[%emt 0:05:40]} 28. Rxc5 {[%emt 0:00:06]} g5 {[%emt 0:01:09]} (28... h5 $14) 29. Nxd5 {[%emt 0:02:37]} Nxd5 {[%emt 0:00:10]} 30. Rcxd5 {[%emt 0:00:07]} Rxd5 {[%emt 0:00:09]} 31. Rxd5 {[%emt 0:00:05][%mdl 4096] Endgame KR-KR} Re1+ {[%emt 0:00:06]} 32. Kh2 {[%emt 0:00:05]} Re2 {[%emt 0:00:05][%csl LRb2,LRf2]} 33. Rxg5+ {[%emt 0:07:05]} Kf7 {[%emt 0:00:07]} 34. Rf5+ {[%emt 0:02:20]} Kg7 $2 {[%emt 0:00:12][%mdl 8192] [#] Black cannot hold the game after this.} (34... Kg6 $16 {is tougher.} 35. Rc5 Rxf2) 35. b4 $18 {[%emt 0:00:21]} Ra2 {[%emt 0:01:40]} 36. Rf3 {[%emt 0:00:02]} Kg6 {[%emt 0:00:12]} (36... h5 $142 37. Kh3 Kg6) 37. g4 {[%emt 0:00:40][%cal Bg3g4,Bg4h5][%mdl 32] White is clearly winning.} Kg5 {[%emt 0:00:50]} 38. Kg3 {[%emt 0:00:13]} h5 {[%emt 0:00:50]} 39. gxh5 {[%emt 0:00:51] Weighted Error Value: White=0.08 (flawless) /Black=0.46} 1-0